bitfinex/quotes_BTCUSD_20240905
["timestamp","ask_amount","ask_price","bid_price","bid_amount"]
[1725579559691,0.15660689,56220.0,56219.0,0.178432]
[1725579559921,0.15660689,56220.0,56219.0,0.19138604]
[1725579560132,0.12872688,56220.0,56219.0,0.19138604]
[1725579561709,0.103,56220.0,56219.0,0.72501204]
[1725579561925,0.003,56220.0,56219.0,1.08076304]
[1725579562160,0.003,56220.0,56219.0,0.72501204]
[1725579563019,0.02649121,56222.0,56221.0,0.533607]
[1725579563274,0.02787864,56224.0,56221.0,0.533607]
[1725579563275,0.02787864,56224.0,56222.0,0.177864]
[1725579563488,0.02787864,56224.0,56223.0,0.084]
[1725579563694,0.02787864,56224.0,56223.0,0.27481704]
[1725579565017,0.02787864,56224.0,56223.0,0.27381704]
[1725579565246,0.02787864,56224.0,56223.0,0.72884304]
[1725579565714,0.05338276,56224.0,56223.0,0.72884304]
[1725579565902,0.05338276,56224.0,56223.0,0.72984304]
[1725579566327,0.05338276,56224.0,56223.0,0.72884304]
[1725579566541,0.05338276,56224.0,56223.0,0.73584304]
[1725579566991,0.05338276,56224.0,56223.0,0.73284304]
[1725579567203,0.05438276,56224.0,56223.0,0.73984304]
[1725579568054,0.02650412,56224.0,56223.0,0.73984304]
[1725579569628,0.02650412,56224.0,56223.0,1.09556904]
[1725579570302,0.001,56224.0,56223.0,1.09556904]
[1725579570521,0.001,56224.0,56223.0,1.45129504]
[1725579586656,0.02886787,56224.0,56223.0,1.45129504]
[1725579586884,0.001,56224.0,56223.0,1.45129504]
[1725579588315,0.02886787,56224.0,56223.0,1.45292704]
[1725579588567,0.001816,56224.0,56223.0,1.45292704]
[1725579589228,0.0296838,56224.0,56223.0,1.45292704]
[1725579589971,0.001816,56224.0,56223.0,1.45292704]
[1725579592536,0.0296838,56224.0,56223.0,1.45292704]
[1725579592797,0.08306497,56224.0,56223.0,1.45292704]
[1725579596521,0.0296838,56224.0,56223.0,1.45292704]
[1725579596763,0.13345294,56228.0,56227.0,0.4395]
[1725579596764,0.08014083,56228.0,56227.0,0.4395]
[1725579597243,0.08014083,56228.0,56227.0,0.98585171]
[1725579598157,0.08014083,56228.0,56227.0,0.98785171]
[1725579598381,0.08014083,56228.0,56227.0,0.01480171]
[1725579600978,0.08015657,56228.0,56227.0,0.01480171]
[1725579601684,0.08015678,56228.0,56227.0,0.01480171]
[1725579601909,0.08097278,56228.0,56227.0,0.01480171]
[1725579602376,0.236626,56228.0,56227.0,0.01480171]
[1725579602615,0.36449448,56228.0,56227.0,0.01480171]
[1725579602868,0.39237093,56228.0,56227.0,0.002]
[1725579603545,0.39537093,56228.0,56227.0,0.002]
[1725579603765,0.52897126,56228.0,56227.0,0.002]
[1725579604206,0.52597126,56228.0,56227.0,0.002]
[1725579604394,0.53497126,56228.0,56227.0,0.003]
[1725579604691,0.53497126,56228.0,56227.0,0.001]
[1725579604918,0.53597126,56228.0,56227.0,0.001]
[1725579605159,0.53497126,56228.0,56227.0,0.001]
[1725579605631,0.40837093,56228.0,56227.0,0.002]
[1725579607481,0.56868449,56228.0,56227.0,0.002]
[1725579608181,0.54080804,56228.0,56227.0,0.002]
[1725579609103,0.45560804,56228.0,56227.0,0.002]
[1725579609352,0.14468448,56228.0,56227.0,0.1721]
[1725579609815,0.14468448,56228.0,56227.0,0.36285678]
[1725579610031,0.14468448,56228.0,56227.0,0.18500678]
[1725579610698,0.14468448,56228.0,56227.0,0.36285678]
[1725579611146,0.14468448,56228.0,56227.0,0.36185678]
[1725579611147,0.13568448,56228.0,56227.0,0.36185678]
[1725579611365,0.12868448,56228.0,56227.0,0.36085678]
[1725579611587,0.02868448,56228.0,56227.0,0.36085678]
[1725579611806,0.02968448,56228.0,56227.0,0.36085678]
[1725579612032,0.02868448,56228.0,56227.0,0.36085678]
[1725579612497,0.03168448,56228.0,56227.0,0.71855678]
[1725579612718,0.03168448,56228.0,56227.0,0.36285678]
[1725579612959,0.02868448,56228.0,56227.0,0.36285678]
[1725579613628,0.02868448,56228.0,56227.0,0.71855678]
[1725579613856,0.02619338,56228.0,56227.0,0.71855678]
[1725579616282,0.02619338,56228.0,56227.0,0.36285678]
[1725579617734,0.02619338,56228.0,56227.0,0.36285678]
[1725579618215,0.02619338,56228.0,56227.0,1.07425678]
[1725579619337,0.15976579,56228.0,56227.0,1.07425678]
[1725579619782,0.000816,56229.0,56228.0,0.889235]
[1725579619993,0.000816,56229.0,56228.0,0.961835]
[1725579620237,0.000816,56229.0,56228.0,0.9746994]
[1725579620458,0.000816,56229.0,56228.0,1.0721994]
[1725579621233,0.001816,56229.0,56228.0,1.4278934]
[1725579621468,0.001816,56229.0,56228.0,1.7835874]
[1725579621911,0.001816,56229.0,56228.0,1.83801784]
[1725579622153,0.001816,56229.0,56228.0,1.7845874]
[1725579622363,0.000816,56229.0,56228.0,1.7835874]
[1725579622581,0.001816,56229.0,56228.0,1.7905874]
[1725579622801,0.001816,56229.0,56228.0,1.7965874]
[1725579623036,0.001816,56229.0,56228.0,1.7945874]
[1725579624395,0.001816,56229.0,56228.0,1.7965874]
[1725579625531,0.001816,56229.0,56228.0,1.7945874]
[1725579626646,0.001816,56229.0,56228.0,1.7965874]
[1725579627077,0.001816,56229.0,56228.0,1.7945874]
[1725579629316,0.001816,56229.0,56228.0,1.7965874]
[1725579631773,0.001816,56229.0,56228.0,1.80558073]
[1725579632647,0.001816,56229.0,56228.0,1.80358073]
[1725579633557,0.001816,56229.0,56228.0,1.81558073]
[1725579633856,0.000816,56234.0,56233.0,1.612483]
[1725579634067,0.000816,56234.0,56233.0,1.89288299]
[1725579634283,0.000816,56234.0,56233.0,1.9146153]
[1725579635643,0.00082,56245.0,56243.0,1.779395]
[1725579635874,0.00082,56245.0,56243.0,1.93559499]
[1725579636133,0.00082,56245.0,56243.0,1.95728773]
[1725579636812,0.00082,56245.0,56243.0,1.95528773]
[1725579637040,0.00082,56245.0,56243.0,1.95728773]
[1725579637293,0.00082,56245.0,56243.0,1.95528773]
[1725579637514,0.00082,56245.0,56243.0,1.95728773]
[1725579638006,0.00182,56244.0,56243.0,1.97128773]
[1725579638241,0.00182,56244.0,56243.0,1.98528773]
[1725579638470,0.00082,56244.0,56243.0,1.97128773]
[1725579638708,0.00082,56244.0,56243.0,1.95728773]
[1725579638963,0.00182,56244.0,56243.0,1.98528773]
[1725579639629,0.00182,56244.0,56243.0,2.34088673]
[1725579642025,0.00182,56244.0,56243.0,2.69648573]
[1725579642248,0.00082,56245.0,56243.0,2.69648573]
[1725579642249,0.00082,56245.0,56244.0,1.987761]
[1725579642484,0.00082,56245.0,56244.0,2.181361]
[1725579642735,0.00082,56247.0,56245.0,1.632141]
[1725579642993,0.00082,56247.0,56246.0,0.84716999]
[1725579643229,0.00082,56247.0,56246.0,1.93690999]
[1725579643468,0.00082,56247.0,56246.0,2.31414349]
[1725579644188,0.00082,56247.0,56246.0,2.66972349]
[1725579645351,0.00182,56247.0,56246.0,2.68372349]
[1725579645848,0.00082,56247.0,56246.0,2.68372349]
[1725579646079,0.00082,56247.0,56246.0,2.69772349]
[1725579646316,0.00182,56247.0,56246.0,2.69572349]
[1725579646536,0.00182,56247.0,56246.0,2.68372349]
[1725579647709,0.00182,56247.0,56246.0,2.68172349]
[1725579647926,0.00182,56247.0,56246.0,2.68372349]
[1725579648156,0.00182,56247.0,56246.0,2.69772349]
[1725579648814,0.04326691,56271.0,56268.0,0.17772]
[1725579649041,0.63254314,56297.0,56250.0,0.01]
[1725579649042,0.0702,56268.0,56250.0,0.01]
[1725579649287,0.11119999,56265.0,56264.0,0.177732]
[1725579650383,0.11119999,56265.0,56263.0,0.177736]
[1725579650862,0.11119999,56265.0,56263.0,0.177734]
[1725579651732,0.11219999,56265.0,56263.0,0.187734]
[1725579651964,0.11219999,56265.0,56263.0,0.199734]
[1725579652190,0.11119999,56265.0,56263.0,0.177734]
[1725579652429,0.18139999,56268.0,56263.0,0.177734]
[1725579652667,0.001,56265.0,56264.0,0.177733]
[1725579654623,0.20683404,56268.0,56264.0,0.177733]
[1725579655100,0.20683404,56268.0,56265.0,0.177729]
[1725579655577,0.09563405,56268.0,56265.0,0.177729]
[1725579657157,0.1,56278.0,56265.0,0.177729]
[1725579657407,0.11119999,56271.0,56267.0,0.177723]
[1725579657644,0.11119999,56271.0,56266.0,0.177726]
[1725579657888,0.21555,56270.0,56266.0,0.177726]
[1725579658346,0.21555,56270.0,56265.0,0.003]
[1725579658563,0.11119999,56271.0,56266.0,0.177726]
[1725579658998,0.11119999,56271.0,56266.0,0.178726]
[1725579659215,0.11119999,56271.0,56266.0,0.177726]
[1725579660142,0.11119999,56271.0,56267.0,0.02150872]
[1725579660610,0.11119999,56271.0,56266.0,0.177726]
[1725579660946,0.02785564,56272.0,56266.0,0.0997]
[1725579661195,0.02785564,56272.0,56270.0,0.177712]
[1725579661460,0.02785564,56272.0,56271.0,0.177711]
[1725579661927,0.1,56276.0,56271.0,0.19921865]
[1725579662613,0.001,56272.0,56271.0,0.02150765]
[1725579663295,0.001,56272.0,56270.0,0.177712]
[1725579663525,0.001,56272.0,56271.0,0.19921865]
[1725579663751,0.001,56272.0,56271.0,0.55464065]
[1725579664231,0.03279782,56277.0,56271.0,0.55464065]
[1725579664232,0.14399781,56277.0,56271.0,0.02150765]
[1725579664462,0.01861355,56275.0,56271.0,0.02150765]
[1725579664693,0.11119999,56274.0,56272.0,0.02150765]
[1725579664934,0.11119999,56274.0,56265.0,0.355455]
[1725579665157,0.00082,56281.0,56253.0,0.355531]
[1725579665158,0.03810534,56282.0,56273.0,0.02150765]
[1725579665401,0.02785338,56280.0,56265.0,0.177728]
[1725579665626,0.11119999,56271.0,56265.0,0.177728]
[1725579666099,0.11119999,56271.0,56266.0,0.19921156]
[1725579666588,0.11119999,56271.0,56266.0,0.02148556]
[1725579667048,0.11119999,56271.0,56265.0,0.17873]
[1725579667275,0.11119999,56271.0,56267.0,0.02147681]
[1725579667521,0.11119999,56274.0,56265.0,0.001]
[1725579667751,0.11119999,56274.0,56268.0,0.02147681]
[1725579667987,1.206997,56273.0,56265.0,0.002]
[1725579668217,1.206997,56273.0,56265.0,0.001]
[1725579668508,1.040355,56272.0,56266.0,0.02147681]
[1725579668743,0.1554,56273.0,56267.0,0.002]
[1725579668957,0.11119999,56277.0,56267.0,0.002]
[1725579668958,0.11119999,56277.0,56267.0,0.02146187]
[1725579669180,0.809708,56276.0,56267.0,0.02146187]
[1725579669399,0.809708,56276.0,56266.0,0.253627]
[1725579669614,0.809708,56276.0,56268.0,0.02146187]
[1725579669854,0.809708,56276.0,56266.0,0.0789]
[1725579670292,0.809708,56276.0,56267.0,0.02146187]
[1725579670507,0.11119999,56277.0,56267.0,0.02146187]
[1725579670723,0.1,56276.0,56267.0,0.12116187]
[1725579672587,0.103,56276.0,56267.0,0.12116187]
[1725579673713,0.103,56276.0,56267.0,0.29888487]
[1725579673935,0.003,56276.0,56267.0,0.29888487]
[1725579674381,0.003,56276.0,56268.0,0.17772]
[1725579674846,0.003815,56276.0,56268.0,0.177719]
[1725579675074,0.003815,56276.0,56269.0,0.02146187]
[1725579675291,0.000815,56276.0,56269.0,0.02146187]
[1725579675720,0.003815,56276.0,56269.0,0.02146187]
[1725579676459,0.003815,56276.0,56270.0,0.1756]
[1725579676679,0.02949146,56276.0,56270.0,0.353313]
[1725579676912,0.000815,56276.0,56271.0,0.02146187]
[1725579677354,0.003815,56276.0,56271.0,0.02146187]
[1725579677800,0.02784289,56275.0,56271.0,0.02146187]
[1725579678024,0.02784289,56275.0,56267.0,0.177723]
[1725579678243,0.02784289,56275.0,56272.0,0.02146187]
[1725579678469,0.02784289,56275.0,56266.0,0.354954]
[1725579678738,0.02784289,56275.0,56273.0,0.02146187]
[1725579678955,0.02784289,56275.0,56267.0,0.02146187]
[1725579679177,0.08106817,56275.0,56266.0,0.354954]
[1725579679398,0.05322528,56275.0,56268.0,0.02144068]
[1725579679630,0.05322528,56275.0,56266.0,0.354954]
[1725579679849,0.05322528,56275.0,56269.0,0.02144068]
[1725579680068,0.15704028,56276.0,56266.0,0.354954]
[1725579680285,0.05322528,56273.0,56270.0,0.02144068]
[1725579680516,0.05322528,56273.0,56266.0,0.354954]
[1725579680739,0.05322528,56272.0,56267.0,0.02143369]
[1725579681185,0.05322528,56272.0,56266.0,0.354956]
[1725579681411,0.05322528,56272.0,56268.0,0.02143369]
[1725579681631,0.05322528,56272.0,56266.0,0.354956]
[1725579681853,0.05322528,56272.0,56269.0,0.02143369]
[1725579682043,0.05322528,56272.0,56267.0,0.001]
[1725579682262,0.05322528,56272.0,56270.0,0.02143369]
[1725579682405,0.05322528,56272.0,56267.0,0.001]
[1725579682604,0.07983792,56273.0,56271.0,0.02143369]
[1725579682859,0.07983792,56273.0,56267.0,0.001]
[1725579683068,0.07983792,56273.0,56268.0,0.02143631]
[1725579683069,0.05337316,56271.0,56268.0,0.02143631]
[1725579683322,0.05337316,56270.0,56268.0,0.02143631]
[1725579683864,0.05337316,56270.0,56266.0,0.17723]
[1725579683959,0.05337316,56270.0,56269.0,0.02143631]
[1725579684179,0.05337316,56270.0,56268.0,0.001]
[1725579684393,0.05337316,56270.0,56269.0,0.02143631]
[1725579684827,0.05337316,56270.0,56268.0,0.002]
[1725579685029,0.0533779,56270.0,56269.0,0.02143631]
[1725579685548,0.0533779,56270.0,56269.0,0.02543631]
[1725579685764,0.0533779,56270.0,56269.0,0.004]
[1725579685988,0.0533779,56270.0,56269.0,0.02543631]
[1725579686203,0.0533779,56270.0,56269.0,0.004]
[1725579686449,0.0533779,56270.0,56269.0,0.02543631]
[1725579686674,0.0533779,56270.0,56269.0,0.004]
[1725579686895,0.0533779,56270.0,56269.0,0.02743631]
[1725579687820,0.07963584,56270.0,56269.0,0.02743631]
[1725579688007,0.07963584,56270.0,56269.0,0.02906631]
[1725579690674,0.07963584,56270.0,56269.0,0.10106631]
[1725579691321,0.07963584,56270.0,56269.0,0.19746631]
[1725579692211,0.02625794,56270.0,56269.0,0.19746631]
[1725579692679,0.0533779,56275.0,56269.0,0.19746631]
[1725579693587,0.0533779,56272.0,56269.0,0.19746631]
[1725579693808,0.0533779,56272.0,56269.0,0.19546631]
[1725579694502,0.0533779,56272.0,56269.0,0.19146631]
[1725579694727,0.0533779,56271.0,56269.0,0.19146631]
[1725579694961,0.08006685,56273.0,56269.0,0.19146631]
[1725579694962,0.0533779,56272.0,56269.0,0.19146631]
[1725579695400,0.0533779,56271.0,56269.0,0.19146631]
[1725579695857,0.0533779,56271.0,56269.0,0.19246631]
[1725579696305,0.0533779,56272.0,56269.0,0.19246631]
[1725579696762,0.0533779,56271.0,56269.0,0.19246631]
[1725579696987,0.0533779,56271.0,56269.0,0.19346631]
[1725579697215,0.0533779,56272.0,56269.0,0.19346631]
[1725579697456,0.0533779,56271.0,56269.0,0.19246631]
[1725579697708,0.08006685,56273.0,56269.0,0.19246631]
[1725579697709,0.0533779,56272.0,56270.0,0.1684]
[1725579697962,0.13345073,56275.0,56271.0,0.0731]
[1725579697963,0.0533779,56274.0,56271.0,0.0731]
[1725579698694,0.0533779,56275.0,56272.0,0.02143225]
[1725579699143,0.0533779,56274.0,56272.0,0.02143225]
[1725579699678,0.0533779,56275.0,56272.0,0.02143225]
[1725579700595,0.0533779,56274.0,56272.0,0.02143225]
[1725579702241,0.0553779,56274.0,56272.0,0.02143225]
[1725579702722,0.002,56274.0,56272.0,0.02143225]
[1725579704120,0.002,56274.0,56272.0,0.19913925]
[1725579705115,0.002,56274.0,56273.0,0.1689]
[1725579705949,0.002,56274.0,56273.0,0.19033225]
[1725579706363,0.002,56274.0,56273.0,0.36803725]
[1725579706593,0.0533779,56275.0,56273.0,0.36803725]
[1725579707526,0.002,56274.0,56273.0,0.36803725]
[1725579707747,0.002,56274.0,56273.0,0.19033225]
[1725579707970,0.0533779,56275.0,56273.0,0.36803725]
[1725579708196,0.14488176,56276.0,56274.0,0.1777]
[1725579708452,0.14488176,56276.0,56273.0,0.36803525]
[1725579708453,0.003,56275.0,56273.0,0.36803525]
[1725579708699,0.003,56275.0,56273.0,0.346603]
[1725579709837,0.14488176,56276.0,56273.0,0.346603]
[1725579710064,0.04488176,56276.0,56274.0,0.0741]
[1725579710298,0.08006685,56279.0,56274.0,0.0741]
[1725579710299,0.05338126,56279.0,56274.0,0.0741]
[1725579710541,0.01861152,56281.0,56274.0,0.0741]
[1725579710777,0.05338123,56279.0,56274.0,0.0741]
[1725579711483,0.05338123,56278.0,56274.0,0.0741]
[1725579712664,0.05338123,56278.0,56274.0,0.0731]
[1725579713397,0.21119999,56280.0,56274.0,0.0731]
[1725579713661,1.123954,56279.0,56274.0,0.0731]
[1725579714151,0.102,56278.0,56274.0,0.0731]
[1725579714616,0.1,56278.0,56274.0,0.0731]
[1725579715108,0.103,56279.0,56274.0,0.0731]
[1725579715347,0.05338316,56277.0,56274.0,0.0731]
[1725579715577,0.1,56277.0,56274.0,0.0731]
[1725579715805,0.15338272,56277.0,56274.0,0.0731]
[1725579716528,0.1,56277.0,56274.0,0.0731]
[1725579716762,0.05538272,56278.0,56274.0,0.0731]
[1725579717224,0.05338272,56278.0,56274.0,0.0731]
[1725579717473,0.1,56280.0,56274.0,0.0731]
[1725579717474,0.001,56277.0,56274.0,0.0731]
[1725579718152,0.05338272,56279.0,56274.0,0.0731]
[1725579719493,0.002,56278.0,56274.0,0.0731]
[1725579720242,0.05338272,56277.0,56274.0,0.0731]
[1725579720470,0.05338272,56277.0,56275.0,0.0197364]
[1725579720934,0.16458271,56277.0,56275.0,0.0197364]
[1725579721176,0.1,56276.0,56275.0,0.0197364]
[1725579721397,0.18007095,56276.0,56273.0,0.0958]
[1725579721871,0.18007095,56276.0,56274.0,0.01973731]
[1725579722098,0.05338138,56275.0,56274.0,0.01973731]
[1725579722328,0.05338138,56275.0,56274.0,0.11913731]
[1725579722571,0.15338138,56276.0,56274.0,0.11913731]
[1725579722828,0.1,56277.0,56276.0,0.1763]
[1725579723068,0.05538138,56278.0,56276.0,0.1763]
[1725579723293,0.13460798,56277.0,56276.0,0.19604931]
[1725579723520,0.23560798,56277.0,56276.0,0.1763]
[1725579723742,0.23560798,56277.0,56276.0,0.19604931]
[1725579723743,0.101,56277.0,56276.0,0.19604931]
[1725579723970,0.18106947,56277.0,56276.0,0.19604931]
[1725579724224,0.1,56277.0,56276.0,0.19604931]
[1725579724665,0.1820669,56278.0,56276.0,0.11914931]
[1725579724887,0.29326689,56278.0,56276.0,0.11914931]
[1725579725126,0.29126689,56278.0,56276.0,0.11914931]
[1725579725354,0.10790743,56277.0,56276.0,0.11914931]
[1725579725587,1.62785153,56277.0,56276.0,0.01974931]
[1725579725809,1.58791888,56277.0,56276.0,0.01974931]
[1725579726032,1.58791888,56277.0,56274.0,0.0769]
[1725579726257,0.0533783,56275.0,56274.0,0.0769]
[1725579726935,0.07199011,56275.0,56274.0,0.0769]
[1725579727608,0.07199011,56275.0,56274.0,0.0799]
[1725579727843,0.07199011,56275.0,56274.0,0.0809]
[1725579728295,0.15765288,56275.0,56274.0,0.004]
[1725579728519,0.97580523,56275.0,56274.0,0.004]
[1725579729204,0.89573788,56275.0,56274.0,0.004]
[1725579729432,0.25765288,56275.0,56274.0,0.004]
[1725579729655,1.98199288,56275.0,56274.0,0.001]
[1725579729883,1.67833288,56275.0,56274.0,0.001]
[1725579730593,1.67833288,56275.0,56273.0,0.0994]
[1725579730820,0.10792217,56274.0,56273.0,0.0994]
[1725579731515,0.10792217,56274.0,56272.0,0.00163]
[1725579731516,1.78282108,56274.0,56272.0,0.00163]
[1725579731754,1.20699753,56273.0,56272.0,0.00163]
[1725579732004,1.02925808,56273.0,56272.0,0.00163]
[1725579732250,0.84795829,56273.0,56272.0,0.00163]
[1725579732470,0.69285829,56273.0,56272.0,0.00163]
[1725579732692,0.45154829,56273.0,56272.0,0.07853]
[1725579732912,0.42483554,56273.0,56272.0,0.07853]
[1725579733355,0.31805408,56273.0,56272.0,0.09827227]
[1725579733570,0.42483554,56273.0,56272.0,0.09827227]
[1725579734452,0.42483156,56273.0,56272.0,0.09827227]
[1725579735352,0.03086665,56273.0,56272.0,0.09827227]
[1725579735606,0.17818,56273.0,56272.0,0.09827227]
[1725579737219,0.17796614,56273.0,56272.0,0.09827227]
[1725579737665,0.17796614,56273.0,56272.0,0.19767227]
[1725579741151,0.00078614,56273.0,56272.0,0.19767227]
[1725579745191,0.00078614,56273.0,56272.0,0.37538027]
[1725579749095,0.00160214,56273.0,56272.0,0.37538027]
[1725579754529,0.00160214,56273.0,56272.0,0.73079627]
[1725579754772,0.00160214,56273.0,56272.0,1.08621227]
[1725579755192,0.0202128,56273.0,56272.0,1.08621227]
[1725579755689,0.0202128,56273.0,56272.0,1.44162827]
[1725579755909,0.0202128,56273.0,56272.0,1.79704427]
[1725579756333,0.0202128,56273.0,56272.0,1.80004427]
[1725579756334,0.01942666,56273.0,56272.0,1.80004427]
[1725579756584,0.01942666,56273.0,56272.0,1.79804427]
[1725579756995,0.01942666,56273.0,56272.0,1.80804427]
[1725579757223,0.01942666,56273.0,56272.0,1.79704427]
[1725579757451,0.02042666,56273.0,56272.0,1.81104427]
[1725579757682,0.02042666,56273.0,56272.0,1.82504427]
[1725579758250,0.02042666,56273.0,56272.0,1.46962827]
[1725579771644,0.07042666,56273.0,56272.0,1.46962827]
[1725579785478,0.11119999,56292.0,56282.0,0.177673]
[1725579785706,0.11119999,56292.0,56281.0,0.428455]
[1725579785707,0.228743,56291.0,56283.0,0.177673]
[1725579785935,0.228743,56291.0,56283.0,0.19734587]
[1725579786157,0.24735207,56291.0,56283.0,0.19734587]
[1725579786389,0.2259,56290.0,56283.0,0.19734587]
[1725579787571,0.1,56289.0,56283.0,0.19734587]
[1725579788700,0.001,56290.0,56283.0,0.01967287]
[1725579789173,0.01860907,56291.0,56283.0,0.01967287]
[1725579789400,0.82223,56290.0,56283.0,0.02167287]
[1725579789667,0.1,56289.0,56283.0,0.02167287]
[1725579790131,0.1,56289.0,56283.0,0.01967287]
[1725579790595,0.101,56290.0,56283.0,0.01967287]
[1725579790827,0.1,56290.0,56283.0,0.01967287]
[1725579791282,0.01860907,56291.0,56283.0,0.01967287]
[1725579791480,0.59038,56290.0,56283.0,0.01967287]
[1725579791950,0.1,56289.0,56283.0,0.01967287]
[1725579792618,0.1,56289.0,56283.0,0.02167287]
[1725579793096,0.11119999,56285.0,56283.0,0.02167287]
[1725579793332,0.68545,56284.0,56283.0,0.02167287]
[1725579793586,0.310429,56284.0,56283.0,0.002]
[1725579793826,0.05328409,56287.0,56283.0,0.002]
[1725579793827,0.571269,56286.0,56283.0,0.002]
[1725579794271,0.810124,56288.0,56283.0,0.002]
[1725579794500,0.910124,56288.0,56284.0,0.01967559]
[1725579794936,0.02784897,56286.0,56284.0,0.01967559]
[1725579794937,0.02784897,56286.0,56284.0,0.18687559]
[1725579795163,0.02784897,56286.0,56284.0,0.1672]
[1725579795402,0.02784897,56286.0,56285.0,0.01967559]
[1725579795659,0.02784897,56286.0,56284.0,0.1672]
[1725579795889,0.02784897,56286.0,56285.0,0.01967559]
[1725579796251,0.02784897,56286.0,56284.0,0.1672]
[1725579796467,0.03084897,56286.0,56285.0,0.01967559]
[1725579796923,0.02884897,56286.0,56284.0,0.1672]
[1725579797117,0.02884897,56286.0,56285.0,0.01967559]
[1725579797349,0.03084897,56286.0,56284.0,0.1672]
[1725579797593,0.03084897,56286.0,56285.0,0.01967559]
[1725579797802,0.05868532,56286.0,56284.0,0.1672]
[1725579798004,0.03084897,56286.0,56285.0,0.01967559]
[1725579798228,0.05868538,56286.0,56284.0,0.1672]
[1725579798434,0.02984897,56286.0,56285.0,0.01967559]
[1725579798658,0.05568537,56286.0,56285.0,0.01967559]
[1725579798883,0.05668537,56286.0,56284.0,0.1672]
[1725579799095,0.02884897,56286.0,56285.0,0.01967559]
[1725579799316,0.1120004,56286.0,56285.0,0.01967559]
[1725579799559,0.1120004,56286.0,56284.0,0.1672]
[1725579799560,0.08321188,56286.0,56284.0,0.1672]
[1725579799770,0.08321188,56286.0,56285.0,0.01967559]
[1725579800005,0.08421188,56286.0,56284.0,0.1672]
[1725579800222,0.03084897,56286.0,56285.0,0.01967559]
[1725579800462,0.03084897,56286.0,56284.0,0.1672]
[1725579800707,0.05338229,56285.0,56284.0,0.1672]
[1725579800932,0.08423126,56286.0,56284.0,0.1672]
[1725579801451,0.05338229,56285.0,56284.0,0.1672]
[1725579802122,0.08004436,56285.0,56284.0,0.1672]
[1725579804320,0.08004436,56285.0,56284.0,0.64420999]
[1725579804321,0.001,56285.0,56284.0,0.64420999]
[1725579804555,0.001,56285.0,56284.0,0.69941]
[1725579805031,0.001,56285.0,56284.0,0.34407]
[1725579805255,0.001,56285.0,56284.0,0.1664]
[1725579805479,0.001,56285.0,56284.0,0.69941]
[1725579805932,0.001,56285.0,56284.0,0.70941]
[1725579806162,0.01860812,56286.0,56285.0,0.177667]
[1725579806375,0.01860812,56286.0,56285.0,0.251867]
[1725579807256,0.01960812,56286.0,56285.0,0.258867]
[1725579808846,0.01960812,56286.0,56285.0,0.266867]
[1725579809059,0.01960812,56286.0,56285.0,0.359067]
[1725579809291,0.01960812,56286.0,56285.0,0.714401]
[1725579809511,0.01960812,56286.0,56285.0,0.359067]
[1725579810191,0.01960812,56286.0,56285.0,0.37871139]
[1725579811583,0.01960812,56286.0,56285.0,0.73404539]
[1725579812264,0.01960812,56286.0,56285.0,0.37871139]
[1725579812960,0.01960812,56286.0,56285.0,0.73404539]
[1725579814301,0.01960812,56286.0,56285.0,0.37871139]
[1725579814526,0.01960812,56286.0,56285.0,0.73404539]
[1725579815201,0.01960812,56286.0,56285.0,1.08937939]
[1725579815421,0.01960812,56286.0,56285.0,0.73404539]
[1725579817514,0.01960812,56286.0,56285.0,1.44471339]
[1725579817742,0.01960812,56286.0,56285.0,1.80004739]
[1725579818412,0.01960812,56286.0,56285.0,1.80204739]
[1725579818891,0.01960812,56286.0,56285.0,1.79204739]
[1725579819112,0.01960812,56286.0,56285.0,1.80604739]
[1725579819568,0.01960812,56286.0,56285.0,1.79204739]
[1725579819792,0.01860812,56286.0,56285.0,1.79904739]
[1725579819988,0.01860812,56286.0,56285.0,1.81304739]
[1725579820511,0.01860812,56286.0,56285.0,1.79904739]
[1725579820947,0.01860812,56286.0,56285.0,1.81304739]
[1725579829755,0.20853772,56300.0,56299.0,0.177623]
[1725579830207,0.22714057,56300.0,56299.0,0.19715696]
[1725579831110,0.22714057,56300.0,56299.0,0.55240296]
[1725579832313,0.25265722,56300.0,56299.0,0.55240296]
[1725579832525,0.25265722,56300.0,56299.0,0.55640296]
[1725579832967,0.25265722,56300.0,56299.0,0.55840296]
[1725579833668,0.25265722,56300.0,56299.0,0.55640296]
[1725579833894,0.25265722,56300.0,56299.0,0.55940296]
[1725579834125,0.25265722,56300.0,56299.0,0.55540296]
[1725579835016,0.25265722,56300.0,56299.0,0.56040296]
[1725579835967,0.25265722,56300.0,56299.0,0.91564896]
[1725579839579,0.05018667,56305.0,56301.0,0.177614]
[1725579839869,0.01860366,56305.0,56301.0,0.177614]
[1725579840097,0.01860366,56305.0,56302.0,0.01953082]
[1725579840758,0.01960366,56305.0,56302.0,0.19714382]
[1725579841455,0.15646871,56305.0,56302.0,0.01953082]
[1725579841694,0.80113517,56304.0,56302.0,0.01953082]
[1725579841911,0.80113517,56304.0,56294.0,0.355274]
[1725579841912,0.261144,56303.0,56294.0,0.355274]
[1725579842137,0.261144,56303.0,56292.0,0.0746]
[1725579842138,0.11119999,56300.0,56292.0,0.0746]
[1725579842369,0.326412,56299.0,56295.0,0.01948161]
[1725579842599,0.252134,56298.0,56293.0,0.177641]
[1725579842815,0.11119999,56300.0,56293.0,0.177641]
[1725579842816,0.30864,56299.0,56296.0,0.01948161]
[1725579843056,0.30864,56299.0,56293.0,0.177641]
[1725579843258,0.30864,56299.0,56297.0,0.01948161]
[1725579843515,0.30864,56299.0,56298.0,0.01948161]
[1725579843948,0.30864,56299.0,56295.0,0.004]
[1725579844196,0.30864,56299.0,56298.0,0.01948161]
[1725579844428,0.30864,56299.0,56293.0,0.002]
[1725579844655,0.30864,56299.0,56298.0,0.01948161]
[1725579844850,0.30864,56299.0,56297.0,0.004]
[1725579845117,0.30864,56299.0,56298.0,0.01948161]
[1725579846290,0.14144,56299.0,56298.0,0.01948161]
[1725579846727,0.14144,56299.0,56298.0,0.002]
[1725579846961,0.14144,56299.0,56298.0,0.02148161]
[1725579847178,0.14144,56299.0,56298.0,0.002]
[1725579847457,0.1371124,56300.0,56298.0,0.02148161]
[1725579847682,0.14144,56299.0,56298.0,0.002]
[1725579848581,0.1371124,56300.0,56298.0,0.002]
[1725579849249,0.1371124,56300.0,56294.0,0.0901]
[1725579849717,0.02591241,56300.0,56298.0,0.001]
[1725579849938,0.26442116,56302.0,56298.0,0.001]